bitfinex/quotes_ETHUSD_20241204
["timestamp","ask_amount","ask_price","bid_price","bid_amount"]
[1733284410613,0.8249,3672.6,3671.8,2.72345]
[1733284410931,0.25479045,3672.5,3671.8,2.72345]
[1733284411116,2.60504659,3673.1,3671.6,2.72353]
[1733284411117,0.8222,3672.3,3671.6,2.72353]
[1733284413768,0.8222,3672.3,3671.3,2.72376]
[1733284413950,0.8074,3672.1,3671.3,2.72376]
[1733284414152,0.03404471,3672.0,3671.3,2.72376]
[1733284414840,0.03404471,3672.0,3671.4,2.72375]
[1733284416749,0.8074,3672.1,3671.4,2.72375]
[1733284416926,0.8074,3672.1,3671.5,2.72368]
[1733284417860,0.8074,3672.1,3671.6,2.72358]
[1733284418993,0.8074,3672.1,3670.1,2.82464]
[1733284418994,0.8074,3672.1,3671.2,2.63228228]
[1733284419135,1.23599072,3672.6,3671.8,2.72342]
[1733284419475,8.74,3673.2,3671.4,2.89275]
[1733284419476,0.03404218,3672.5,3671.6,2.72358]
[1733284419763,1.08298231,3672.4,3671.6,2.72358]
[1733284419937,0.03404218,3672.3,3671.6,2.72358]
[1733284421186,0.25501787,3672.2,3671.6,2.72358]
[1733284421480,0.03404216,3672.1,3671.6,2.72358]
[1733284421645,0.03404214,3672.3,3671.6,2.72358]
[1733284421853,0.25502943,3672.2,3671.6,2.72358]
[1733284422087,0.03404214,3672.1,3671.6,2.72358]
[1733284422254,0.03404213,3672.3,3671.6,2.72358]
[1733284422679,0.25504531,3672.2,3671.6,2.72358]
[1733284422992,0.03404212,3672.1,3671.6,2.72358]
[1733284423176,0.7904,3672.0,3671.6,2.72358]
[1733284435580,0.7904,3672.0,3671.4,2.72368]
[1733284435780,0.7904,3672.0,3671.3,1.43881965]
[1733284436119,0.7904,3672.0,3671.4,0.43317496]
[1733284436322,0.7904,3672.0,3671.6,2.72357]
[1733284440205,0.7904,3672.0,3671.4,0.43317496]
[1733284440383,0.25533558,3671.9,3671.6,2.72356]
[1733284440585,0.7904,3672.0,3671.7,2.72353]
[1733284440895,0.25533482,3671.9,3671.7,2.72353]
[1733284441097,0.7904,3672.0,3670.7,0.35412827]
[1733284441306,0.7904,3672.0,3669.8,1.08887436]
[1733284441307,0.7625,3671.8,3670.3,1.34459142]
[1733284441618,0.25533521,3671.7,3671.2,0.169]
[1733284441831,0.7655,3672.0,3671.7,2.72352]
[1733284442120,0.2551688,3671.9,3671.7,2.72352]
[1733284442421,0.7655,3672.0,3671.7,2.72352]
[1733284442730,0.25517681,3671.9,3671.8,2.72345]
[1733284442935,0.8179,3672.4,3671.7,0.55891114]
[1733284443096,0.25515366,3672.3,3671.9,2.72331]
[1733284443282,0.66342264,3672.2,3671.9,2.72331]
[1733284443479,0.25515366,3672.1,3671.9,2.72331]
[1733284443681,0.25515366,3672.0,3671.9,2.72331]
[1733284443991,1.03705366,3672.0,3671.6,2.7236]
[1733284444315,0.7819,3672.0,3671.6,2.7236]
[1733284444526,0.25517452,3671.9,3671.6,2.7236]
[1733284444723,0.7819,3672.0,3671.6,2.7236]
[1733284444885,0.25517469,3671.9,3671.6,2.7236]
[1733284445087,0.7819,3672.0,3671.6,2.7236]
[1733284445288,0.25517392,3671.9,3671.6,2.7236]
[1733284445585,0.7819,3672.0,3671.8,2.72343]
[1733284445788,0.25516846,3671.9,3671.8,2.72343]
[1733284446122,0.7501,3672.8,3671.8,2.72343]
[1733284446286,0.7501,3672.6,3671.8,2.72343]
[1733284446627,0.66342611,3672.5,3671.8,2.72343]
[1733284446785,0.66342611,3672.4,3671.8,2.72343]
[1733284446983,0.66342611,3672.3,3671.8,2.72343]
[1733284447183,0.25516304,3672.2,3671.8,2.72343]
[1733284447431,0.25516304,3672.1,3671.8,2.72343]
[1733284447724,0.25516304,3672.0,3671.5,1.17559142]
[1733284447925,0.40825897,3672.5,3672.0,2.72325]
[1733284448131,0.66341719,3672.4,3672.2,2.72315]
[1733284448296,0.25515822,3672.3,3672.2,2.72315]
[1733284449024,0.2551401,3672.3,3672.2,2.72316]
[1733284449252,0.8192,3673.1,3672.2,0.289216]
[1733284449404,0.66327532,3673.0,3672.1,1.17559142]
[1733284449585,0.66327532,3672.9,3672.1,1.17559142]
[1733284449789,0.8192,3673.1,3672.1,1.17559142]
[1733284450130,0.66325667,3673.0,3672.1,1.17559142]
[1733284450284,0.66325667,3672.9,3672.1,1.17559142]
[1733284450620,0.25509912,3672.8,3672.4,2.72299]
[1733284450828,0.25509912,3672.7,3672.4,2.72299]
[1733284451033,0.25509912,3672.6,3672.4,2.72299]
[1733284451215,0.40807377,3672.9,3672.5,2.72294]
[1733284451393,0.2550055,3672.8,3672.5,2.72294]
[1733284451597,0.2550055,3672.7,3672.5,2.72294]
[1733284451832,0.40800805,3673.0,3672.6,2.72286]
[1733284452040,0.66301368,3672.9,3672.6,2.72286]
[1733284452331,0.25500563,3672.8,3672.6,2.72286]
[1733284452639,0.25500563,3672.7,3672.6,2.72286]
[1733284453290,0.25500563,3672.7,3672.4,2.72299]
[1733284453601,0.2549535,3672.6,3672.4,2.72299]
[1733284453801,0.03403424,3673.0,3672.4,2.72299]
[1733284453802,0.2549535,3672.5,3672.4,2.72299]
[1733284455293,0.8192,3673.1,3672.5,2.7229]
[1733284455519,0.66276873,3673.0,3672.5,2.7229]
[1733284455719,0.66276873,3672.9,3672.5,2.7229]
[1733284455938,0.25490976,3672.8,3672.5,2.7229]
[1733284456257,0.25490976,3672.7,3672.5,2.7229]
[1733284456393,0.8192,3673.1,3672.1,1.17559142]
[1733284456394,0.25490976,3672.6,3672.3,2.72308]
[1733284456596,0.40782237,3672.9,3672.3,2.72308]
[1733284456790,0.66272239,3672.8,3672.1,1.17559142]
[1733284457098,1.12043419,3672.7,3671.9,2.72338]
[1733284457297,0.8315,3672.5,3671.9,2.72338]
[1733284457520,0.25490002,3672.4,3671.8,1.17559142]
[1733284457697,0.25490002,3672.3,3672.0,2.72329]
[1733284458031,0.8315,3672.5,3672.0,2.72329]
[1733284458352,0.25491014,3672.4,3672.1,2.72321]
[1733284458542,0.8315,3672.5,3672.1,2.72321]
[1733284458738,0.8315,3672.5,3672.2,2.72314]
[1733284459660,0.8301,3672.8,3671.9,2.89238]
[1733284459818,0.25488989,3672.7,3671.9,2.89238]
[1733284460019,0.25488989,3672.6,3672.3,2.72307]
[1733284460220,0.8301,3672.8,3672.3,2.72307]
[1733284460421,0.25488309,3672.7,3672.3,2.72307]
[1733284460722,0.25488309,3672.6,3672.3,2.72307]
[1733284460952,0.8301,3672.8,3672.3,2.72307]
[1733284461132,0.25488492,3672.7,3672.3,2.72307]
[1733284461333,0.25488492,3672.6,3672.3,2.72307]
[1733284461536,0.8301,3672.8,3672.4,2.723]
[1733284461735,0.25487631,3672.7,3672.4,2.723]
[1733284462019,0.25487631,3672.6,3672.4,2.723]
[1733284462222,0.8301,3672.8,3672.4,2.723]
[1733284462530,0.25486919,3672.7,3672.1,2.72318]
[1733284462732,0.25486919,3672.6,3672.2,2.72315]
[1733284462940,0.8301,3672.8,3672.3,2.72304]
[1733284463147,0.25487025,3672.7,3672.3,2.72304]
[1733284463339,0.25487025,3672.6,3672.3,2.72304]
[1733284463547,0.8301,3672.8,3672.3,2.72304]
[1733284463744,0.25486399,3672.7,3672.3,2.72304]
[1733284463953,0.25486399,3672.6,3672.3,2.72304]
[1733284464115,0.8301,3672.8,3672.3,2.72304]
[1733284464320,0.25486134,3672.7,3672.3,2.72304]
[1733284464551,0.25486134,3672.6,3672.3,2.72304]
[1733284464757,0.8301,3672.8,3672.3,2.72304]
[1733284464968,0.25486191,3672.7,3672.3,2.72304]
[1733284465128,0.25486191,3672.6,3672.3,2.72304]
[1733284465329,0.8301,3672.8,3672.3,2.72304]
[1733284465651,0.254859,3672.7,3672.3,2.72304]
[1733284465853,0.254859,3672.6,3672.3,2.72304]
[1733284466032,0.8301,3672.8,3672.3,2.72304]
[1733284466358,0.2548569,3672.7,3672.3,2.72304]
[1733284466535,0.8301,3672.8,3672.3,2.72304]
[1733284466722,0.25485806,3672.7,3672.3,2.72304]
[1733284466922,0.25485806,3672.6,3672.3,2.72304]
[1733284467166,0.8301,3672.8,3672.3,2.72304]
[1733284467324,0.25485931,3672.7,3672.3,2.72304]
[1733284467665,0.8301,3672.8,3672.3,2.72304]
[1733284467666,0.25485931,3672.6,3672.3,2.72304]
[1733284467955,0.8301,3672.8,3672.3,2.72304]
[1733284468263,0.2548574,3672.7,3671.9,1.65118908]
[1733284468427,0.2548574,3672.6,3672.3,2.72306]
[1733284468625,0.2548574,3672.5,3672.3,2.72306]
[1733284468827,0.8301,3672.8,3672.3,2.72306]
[1733284469068,0.2548644,3672.7,3672.3,2.72306]
[1733284469360,0.2548644,3672.6,3672.3,2.72306]
[1733284469661,0.2548644,3672.5,3672.3,2.72306]
[1733284469846,0.8301,3672.8,3672.3,2.72306]
[1733284470046,0.25487355,3672.7,3672.3,2.72306]
[1733284470235,0.25487355,3672.6,3672.3,2.72306]
[1733284470438,0.8301,3672.8,3672.3,2.72306]
[1733284470761,0.25488169,3672.7,3672.3,2.72306]
[1733284470930,0.8301,3672.8,3672.3,2.72306]
[1733284470931,0.25488169,3672.6,3672.3,2.72306]
[1733284471124,0.25488169,3672.5,3672.3,2.72306]
[1733284471425,0.8301,3672.8,3672.3,2.72306]
[1733284471640,0.25502159,3672.7,3672.3,2.72306]
[1733284471842,0.25502159,3672.6,3672.3,2.72306]
[1733284472041,0.25502159,3672.5,3672.3,2.72306]
[1733284472237,0.25505932,3672.4,3672.3,2.72306]
[1733284472461,0.25505932,3672.4,3672.1,2.72322]
[1733284472629,0.44213927,3672.7,3672.1,2.72322]
[1733284472838,0.7545,3672.5,3672.1,2.72322]
[1733284473038,0.25506392,3672.4,3672.1,2.72322]
[1733284473348,0.7545,3672.5,3672.1,2.72322]
[1733284473546,0.25508573,3672.4,3672.1,2.72322]
[1733284473863,0.2550848,3672.3,3672.1,2.72322]
[1733284474029,0.7545,3672.5,3672.1,2.72322]
[1733284474230,0.25508486,3672.4,3672.1,2.72322]
[1733284474443,0.25508486,3672.3,3672.1,2.72322]
[1733284474656,0.7545,3672.5,3672.1,2.72322]
[1733284474858,0.25511409,3672.4,3672.1,2.72322]
[1733284475061,0.25511409,3672.3,3672.1,2.72322]
[1733284475257,0.7545,3672.5,3672.1,2.72322]
[1733284475446,0.25517695,3672.4,3671.8,2.72341]
[1733284475767,0.25517695,3672.3,3671.8,2.72341]
[1733284475930,0.25517695,3672.2,3671.8,2.72341]
[1733284476271,0.7545,3672.5,3671.4,0.169]
[1733284476272,0.25517695,3672.1,3672.0,2.72331]
[1733284476565,0.40831377,3672.4,3672.0,2.72331]
[1733284476737,0.25519776,3672.3,3671.8,4.28894156]
[1733284476939,0.25519776,3672.2,3671.9,2.72338]
[1733284477146,0.7545,3672.5,3671.8,1.56549156]
[1733284477342,0.25521731,3672.4,3672.2,2.7231]
[1733284477648,0.25521661,3672.3,3672.2,2.72316]
[1733284479135,0.25521398,3672.3,3672.2,2.72316]
[1733284479355,0.25521398,3672.3,3672.0,2.7233]
[1733284479561,0.25521398,3672.2,3672.0,2.7233]
[1733284479754,0.40835643,3672.6,3672.0,2.7233]
[1733284480052,0.6635818,3672.5,3672.0,2.7233]
[1733284480253,0.25522537,3672.4,3672.0,2.7233]
[1733284480457,1.06083248,3672.3,3671.8,2.72345]
[1733284480679,0.25523248,3672.2,3671.8,2.72345]
[1733284480973,0.8056,3672.3,3671.9,2.72335]
[1733284481173,0.25523252,3672.2,3671.7,1.17559142]
[1733284481478,0.8056,3672.3,3672.0,2.72329]
[1733284481636,0.25523331,3672.2,3672.0,2.72329]
[1733284481841,0.8056,3672.3,3672.0,2.72329]
[1733284482137,0.25523319,3672.2,3672.0,2.72329]
[1733284482333,0.8056,3672.3,3672.0,2.72329]
[1733284482534,0.25524454,3672.2,3672.0,2.72329]
[1733284482759,0.8056,3672.3,3672.0,2.72329]
[1733284482956,0.25524468,3672.2,3672.0,2.72329]
[1733284483135,0.8056,3672.3,3672.0,2.72329]
[1733284483333,0.25526624,3672.2,3672.0,2.72329]
[1733284483537,0.8056,3672.3,3672.0,2.72329]
[1733284483760,0.25526639,3672.2,3672.0,2.72329]
[1733284483969,0.8056,3672.3,3672.0,2.72329]
[1733284484273,0.25526643,3672.2,3672.0,2.72329]
[1733284484443,0.8056,3672.3,3672.0,2.72329]
[1733284484649,0.25526892,3672.2,3672.0,2.72329]
[1733284484839,0.8056,3672.3,3672.0,2.72329]
[1733284485039,0.25526895,3672.2,3672.0,2.72329]
[1733284485239,0.8056,3672.3,3672.0,2.72329]
[1733284485478,0.25526981,3672.2,3672.0,2.72329]
[1733284485664,0.8056,3672.3,3672.0,2.72329]
[1733284485978,0.25527111,3672.2,3672.1,2.72323]
[1733284486144,0.7893,3672.6,3672.3,2.72307]
[1733284486346,0.66370332,3672.5,3672.3,2.72307]
[1733284486571,0.2552702,3672.4,3672.3,2.72307]
[1733284487678,0.7893,3672.6,3672.3,2.72307]
[1733284487969,0.25526818,3672.5,3672.3,2.72307]
[1733284488175,0.25526818,3672.4,3672.3,2.72307]
[1733284489377,0.25526818,3672.4,3672.3,3.40216214]
[1733284490276,0.25526818,3672.4,3672.3,4.57775356]
[1733284490455,0.7566,3672.9,3672.3,4.57775356]
[1733284490456,0.7566,3672.9,3672.7,2.72279]
[1733284490649,0.66368366,3672.8,3672.7,2.72279]
[1733284491178,0.66367862,3672.8,3672.7,2.72279]
[1733284491784,0.66367862,3672.8,3672.3,1.17559142]
[1733284491949,0.25526101,3672.7,3672.3,1.17559142]
[1733284492143,0.25526101,3672.6,3672.1,0.169]
[1733284492335,0.25526101,3672.5,3672.4,2.72301]
[1733284494782,0.2552415,3672.5,3672.4,2.72301]
[1733284498331,0.7582,3672.4,3671.8,0.169]
[1733284498454,0.7582,3672.4,3671.8,2.72343]
[1733284498858,0.25523227,3672.3,3671.8,2.72343]
[1733284499078,0.7582,3672.4,3671.8,2.72343]
[1733284499355,0.25523607,3672.3,3671.8,2.72343]
[1733284499557,0.25525855,3672.2,3671.8,2.72343]
[1733284499759,0.25525855,3672.1,3671.8,2.72343]
[1733284499995,0.7582,3672.4,3671.8,2.72343]
[1733284500198,0.25525649,3672.3,3671.8,2.72343]
[1733284500491,0.25525649,3672.2,3671.8,2.72344]
[1733284500699,0.25525649,3672.1,3671.8,2.72344]
[1733284500893,0.7582,3672.4,3671.8,2.72344]
[1733284501095,0.25525237,3672.3,3671.8,2.72344]
[1733284501261,0.25525237,3672.2,3671.8,2.72344]
[1733284501462,0.7824,3672.8,3672.1,1.17559142]
[1733284501778,0.25521533,3672.7,3672.1,1.17559142]
[1733284501985,0.25521533,3672.6,3672.1,1.17559142]
[1733284502184,0.25521533,3672.5,3672.2,2.72316]
[1733284502370,0.7824,3672.8,3672.4,2.72301]
[1733284502566,0.25520617,3672.7,3672.4,2.72301]
[1733284502765,0.25520617,3672.6,3672.4,2.72301]
[1733284502967,0.7824,3672.8,3672.4,2.72301]
[1733284503169,0.25520316,3672.7,3672.4,2.72301]
[1733284503364,0.25520316,3672.6,3672.4,2.72301]
[1733284503567,0.7824,3672.8,3672.4,2.72301]
[1733284503767,0.25519464,3672.7,3672.4,2.72301]
[1733284504001,0.25519464,3672.6,3672.4,2.72301]
[1733284504197,0.7824,3672.8,3672.4,2.72301]
[1733284504377,0.25518525,3672.7,3672.4,2.72301]
[1733284504577,0.25518525,3672.6,3672.4,2.72301]
[1733284504805,0.25518525,3672.5,3672.4,2.72301]
[1733284504968,0.7824,3672.8,3672.4,2.72301]
[1733284505300,0.2551888,3672.7,3672.4,2.72301]
[1733284505512,0.2551888,3672.6,3672.4,2.72301]
[1733284505714,0.2551888,3672.5,3672.4,2.72301]
[1733284506784,0.7824,3672.8,3672.4,2.72301]
[1733284506998,0.25520644,3672.7,3672.4,2.72301]
[1733284507226,0.25520644,3672.6,3672.4,2.72301]
[1733284507540,0.7824,3672.8,3672.4,2.72301]
[1733284507738,0.25521936,3672.7,3672.4,2.72301]
[1733284508025,0.25521936,3672.6,3672.4,2.72301]
[1733284508222,0.7824,3672.8,3672.4,2.72301]
[1733284508437,0.25522068,3672.7,3672.4,2.72301]
[1733284508631,0.25522068,3672.6,3672.4,2.72301]
[1733284508815,0.7824,3672.8,3672.4,2.72301]
[1733284509019,0.25522235,3672.7,3672.4,2.72301]
[1733284509216,0.25522235,3672.6,3672.4,2.72301]
[1733284509535,0.7824,3672.8,3672.4,2.72301]
[1733284509738,0.25521897,3672.7,3672.4,2.72301]
[1733284510028,0.25521897,3672.6,3672.4,2.72301]
[1733284510235,0.7824,3672.8,3672.4,2.72301]
[1733284510531,0.25522883,3672.7,3672.4,2.72301]
[1733284510716,0.25522883,3672.6,3672.4,2.72301]
[1733284510947,0.7824,3672.8,3672.4,2.72301]
[1733284511229,0.25522926,3672.7,3672.4,2.72301]
[1733284511391,0.25522926,3672.6,3672.4,2.72301]
[1733284511598,0.7824,3672.8,3672.4,2.72301]
[1733284511919,0.25523959,3672.7,3672.4,2.72301]
[1733284512121,0.7824,3672.8,3672.4,2.72301]
[1733284512122,0.25523959,3672.6,3672.4,2.72301]
[1733284512433,0.25523959,3672.5,3672.4,2.72301]
[1733284513031,0.767,3673.0,3672.6,2.72283]
[1733284513332,0.25523745,3672.9,3672.6,2.72283]
[1733284513510,0.767,3673.0,3672.6,2.72283]
[1733284513511,0.25523745,3672.8,3672.6,2.72283]
[1733284513707,0.25523745,3672.7,3672.4,2.72301]
[1733284513931,0.25523745,3672.6,3672.4,2.72301]
[1733284514230,0.767,3673.0,3672.4,2.72301]
[1733284514492,0.25526637,3672.9,3672.0,1.34459142]
[1733284514598,0.25526637,3672.8,3672.4,2.72297]
[1733284514841,0.25526637,3672.7,3672.4,0.54462]
[1733284515045,0.25526637,3672.6,3672.4,0.54462]
[1733284515287,0.767,3673.0,3672.4,0.54462]
[1733284515493,0.25527487,3672.9,3672.1,2.72323]
[1733284515663,0.25527487,3672.8,3672.0,1.34459142]
[1733284515856,0.25527487,3672.7,3672.4,2.723]
[1733284516060,0.25527487,3672.6,3672.4,2.723]
[1733284516256,0.25527487,3672.5,3672.4,2.723]
[1733284516472,0.767,3673.0,3672.4,2.723]
[1733284516701,0.25528523,3672.9,3672.4,2.723]
[1733284516993,0.25528523,3672.8,3672.4,2.723]
[1733284517291,0.25528523,3672.7,3672.4,2.723]
[1733284517446,0.25528523,3672.6,3672.4,2.723]
[1733284517647,0.767,3673.0,3672.4,2.723]
[1733284517961,0.25528798,3672.9,3672.4,2.723]
[1733284518063,0.25528798,3672.8,3672.4,2.723]
[1733284518247,0.25528798,3672.7,3672.4,2.723]
[1733284518446,0.25528798,3672.6,3672.4,2.723]
[1733284518649,0.2552956,3672.5,3672.4,2.723]
[1733284519187,0.767,3673.0,3672.4,2.723]
[1733284519395,0.25529655,3672.9,3672.4,2.723]
[1733284519593,0.25529655,3672.8,3672.4,2.723]
[1733284519758,0.25529655,3672.7,3672.1,2.72319]
[1733284519948,1.03899655,3672.6,3671.7,0.169]
[1733284520152,0.25529655,3672.5,3671.7,0.57581414]
[1733284520354,0.7905,3672.3,3671.7,2.72352]
[1733284520581,0.25529655,3672.2,3671.8,2.72345]
[1733284520856,0.7905,3672.3,3671.5,2.72366]
[1733284522214,0.7905,3672.3,3671.9,2.72338]
[1733284523369,0.7905,3672.3,3672.0,2.72324]
[1733284523779,0.7905,3672.3,3671.7,2.72353]
[1733284524091,0.7905,3672.3,3672.1,2.72322]
[1733284524395,0.8253,3673.2,3672.3,2.72304]
[1733284524563,1.17559142,3673.5,3672.3,2.72304]
[1733284524564,0.25526682,3673.1,3672.3,2.72304]
[1733284524770,1.01726682,3673.0,3672.3,2.72304]
[1733284524956,0.25526682,3672.9,3672.3,2.72304]
[1733284525355,0.25526682,3672.8,3672.3,2.72304]
[1733284525596,0.25526682,3672.7,3672.3,2.72304]
[1733284525794,0.25526682,3672.6,3672.3,2.72304]
[1733284525968,0.25526682,3672.5,3672.3,2.72304]
[1733284526169,0.762,3672.9,3672.3,2.72304]
[1733284526496,0.25526208,3672.8,3672.3,2.72304]
[1733284526659,0.762,3672.9,3672.3,2.72304]
[1733284526660,0.25526208,3672.7,3672.3,2.72304]
[1733284526979,0.25526208,3672.6,3671.9,1.34459142]
[1733284527298,0.25526208,3672.5,3671.9,1.34459142]
[1733284527471,0.25526208,3672.4,3671.9,1.7365313]
[1733284527793,0.762,3672.9,3672.2,2.72316]
[1733284528093,0.25526108,3672.8,3672.2,2.72316]
[1733284528304,0.25526108,3672.7,3672.2,2.72316]
[1733284528591,0.762,3672.9,3672.2,2.72316]
[1733284528760,0.25525612,3672.6,3672.2,2.72316]
[1733284528970,0.25525483,3672.5,3672.2,2.72316]
[1733284529191,0.25525483,3672.4,3672.2,2.72316]
[1733284529401,0.762,3672.9,3672.2,2.72316]
[1733284529728,0.25525505,3672.8,3672.2,2.72316]
[1733284529896,0.25525505,3672.7,3672.2,2.72316]
[1733284530065,0.25525505,3672.6,3672.2,2.72316]
[1733284530263,0.25525505,3672.5,3672.2,2.72316]
[1733284530485,0.762,3672.9,3671.9,1.34459142]
[1733284530486,0.25525606,3672.4,3672.3,2.72308]
[1733284530791,0.762,3672.9,3672.4,2.723]
[1733284530956,0.25525284,3672.8,3672.4,2.723]
[1733284531157,0.25525284,3672.7,3672.4,2.723]
[1733284531357,0.25525284,3672.6,3672.4,2.723]
[1733284531560,0.25525284,3672.5,3672.4,2.723]
[1733284532256,0.25528765,3672.5,3672.4,2.723]
[1733284532996,0.25528765,3672.5,3671.9,1.34459142]
[1733284533175,0.762,3672.9,3671.9,1.34459142]
[1733284533369,0.28933248,3672.8,3672.3,2.72308]
[1733284533568,0.25529768,3672.7,3672.3,2.72308]
[1733284533775,0.25529768,3672.6,3672.3,2.72308]
[1733284533974,0.762,3672.9,3672.3,2.72308]
[1733284533975,0.25529768,3672.5,3672.3,2.72308]
[1733284534281,0.25530459,3672.4,3672.0,2.72325]
[1733284534597,0.7583,3672.4,3672.0,2.72325]
[1733284534772,0.7583,3672.4,3672.1,2.72323]
[1733284537347,0.7939,3673.2,3672.1,2.72323]
[1733284537483,0.61033664,3673.1,3672.1,2.72323]
[1733284537689,0.7939,3672.9,3672.1,2.72323]
[1733284537921,0.7939,3672.7,3672.1,2.72323]
[1733284538226,0.25530816,3672.6,3672.1,2.72323]
[1733284538395,0.25530816,3672.5,3672.1,2.72323]
[1733284538601,0.25530816,3672.4,3672.1,2.72323]
[1733284538803,0.7939,3672.7,3672.1,2.72323]
[1733284538990,0.25531292,3672.6,3672.1,2.72323]
[1733284539331,0.25531292,3672.5,3672.1,2.72323]
[1733284539517,0.25531292,3672.4,3672.1,2.72323]
[1733284539703,0.7939,3672.7,3672.2,2.72315]
[1733284539904,0.25531145,3672.6,3671.9,2.72338]
[1733284540241,0.25531145,3672.5,3672.2,2.72309]
[1733284540523,0.7939,3672.7,3672.2,2.72309]
[1733284540730,0.25530504,3672.6,3672.0,1.34459142]
[1733284540885,0.25530504,3672.5,3672.0,1.34459142]
[1733284541240,0.7939,3672.7,3672.3,2.72305]
[1733284541534,0.25530411,3672.6,3672.3,2.72305]
[1733284541692,0.25530411,3672.5,3672.3,2.72305]
[1733284541893,0.7939,3672.7,3672.3,2.72305]
[1733284542116,0.25530391,3672.6,3672.3,2.72305]
[1733284542316,0.25530391,3672.5,3672.3,2.72305]
[1733284542530,0.7939,3672.7,3672.3,2.72305]
[1733284542827,0.25530846,3672.6,3672.3,2.72305]
[1733284543169,0.7939,3672.7,3672.3,2.72305]
[1733284543324,0.25532383,3672.5,3672.3,2.72305]
[1733284543533,0.25532383,3672.4,3672.3,2.72305]
[1733284543695,0.7939,3672.7,3672.3,2.72305]
[1733284543895,0.25532657,3672.6,3672.3,2.72305]
[1733284544227,0.25532657,3672.5,3672.3,2.72305]
[1733284544431,0.7939,3672.7,3672.3,2.72305]
[1733284544638,0.25532989,3672.6,3672.3,2.72305]
[1733284544868,0.25532989,3672.5,3672.3,2.72305]
[1733284545052,0.7939,3672.7,3672.3,2.72305]
[1733284545244,0.25534367,3672.6,3672.3,2.72305]
[1733284545445,0.25534367,3672.5,3672.3,2.72305]
[1733284545648,0.7939,3672.7,3672.3,2.72305]
[1733284545870,0.25534418,3672.6,3672.3,2.72305]
[1733284546088,0.25534418,3672.5,3672.3,2.72305]
[1733284546232,0.25535178,3672.4,3672.3,2.72305]
[1733284546439,0.7939,3672.7,3672.3,2.72305]
[1733284546771,0.25534905,3672.6,3672.3,2.72305]
[1733284546965,0.25534905,3672.5,3672.3,2.72305]
[1733284547169,0.25536229,3672.4,3672.3,2.72305]
[1733284547356,0.7939,3672.7,3672.3,2.72305]
[1733284547560,0.2553611,3672.6,3672.3,2.72305]
[1733284547734,0.2553611,3672.5,3672.3,2.72305]
[1733284547935,0.7939,3672.7,3672.3,2.72305]
[1733284548274,0.25536137,3672.6,3672.3,2.72305]
[1733284548473,0.25536137,3672.5,3672.3,2.72305]
[1733284548677,0.25536137,3672.4,3672.3,2.72305]
[1733284549348,0.25537645,3672.4,3672.3,2.72305]
[1733284550361,0.7939,3672.7,3672.3,2.72305]
[1733284550699,0.2553778,3672.6,3672.1,2.72322]
[1733284550976,0.2553778,3672.5,3672.1,2.72322]
[1733284551185,0.7939,3672.7,3672.1,2.72322]
[1733284551478,0.8168,3672.5,3671.4,2.72375]
[1733284551681,0.8168,3672.3,3671.4,2.72375]
[1733284551844,0.8168,3672.1,3671.4,2.72375]
[1733284552042,0.28942225,3672.0,3671.4,2.72375]
[1733284552272,0.2553797,3671.9,3671.4,2.72375]
[1733284552525,0.03404255,3672.0,3671.4,2.72375]
[1733284552697,0.25525066,3671.9,3671.2,0.169]
[1733284552887,0.8168,3672.1,3671.4,2.72368]
[1733284553089,0.25525114,3672.0,3671.4,2.72368]
[1733284553279,0.8168,3672.1,3671.4,2.72368]
[1733284553598,0.25517341,3672.0,3671.8,2.72345]
[1733284553797,0.7791,3672.4,3671.9,2.72338]
[1733284554000,0.25516267,3672.3,3671.9,2.72338]
[1733284554204,0.66342295,3672.2,3671.9,2.72338]
[1733284554378,0.25516267,3672.1,3671.9,2.72338]
[1733284554702,0.25516267,3672.0,3671.9,2.72338]
[1733284555915,0.25516267,3672.0,3671.5,2.72368]
[1733284556156,0.25516267,3671.9,3671.4,1.34459142]
[1733284556275,0.7504,3671.9,3671.2,0.169]
[1733284556612,0.25508047,3671.8,3671.5,2.72367]
[1733284556820,0.7504,3671.9,3671.5,2.72367]
[1733284557020,0.25508861,3671.8,3671.3,2.72382]
[1733284557233,0.7504,3671.9,3671.3,2.72382]
[1733284557531,0.25504843,3671.8,3671.3,2.72382]
[1733284557879,0.7504,3671.9,3671.3,2.72382]
[1733284558115,0.25504847,3671.8,3671.1,1.19181782]
[1733284558293,0.7504,3671.9,3671.4,2.72374]
[1733284558616,0.25500947,3671.8,3671.4,2.72374]
[1733284558815,0.7504,3671.9,3671.4,2.72374]
[1733284559111,0.25501113,3671.8,3671.4,2.72374]
[1733284559316,0.7504,3671.9,3671.4,2.72374]
[1733284559618,0.25497729,3671.8,3671.4,2.72374]
[1733284559819,0.7504,3671.9,3671.4,2.72374]
[1733284559995,0.25497714,3671.8,3671.4,2.72374]
[1733284560187,0.25497054,3671.7,3671.4,2.72374]
[1733284560403,0.7504,3671.9,3671.4,2.72373]
[1733284560593,0.25497273,3671.8,3671.4,2.72373]
[1733284560831,0.25497273,3671.7,3671.4,2.72373]
[1733284561010,0.7504,3671.9,3671.4,2.72373]
[1733284561317,0.2549625,3671.8,3671.4,2.72373]
[1733284561475,0.7504,3671.9,3671.4,2.72373]
[1733284561680,0.25493781,3671.8,3671.4,2.72373]
[1733284561883,0.7504,3671.9,3671.4,2.72373]
[1733284562076,0.25493776,3671.8,3671.4,2.72373]
[1733284562280,0.7504,3671.9,3671.4,2.72373]
[1733284562486,0.25491446,3671.8,3671.4,2.72373]
[1733284562803,0.7504,3671.9,3671.4,3.89932142]
[1733284563003,0.25491209,3671.8,3671.6,2.72359]
[1733284563317,0.7809,3672.3,3671.8,2.72345]
[1733284563527,0.66274452,3672.2,3671.8,2.72345]
[1733284563726,0.25488697,3672.1,3671.8,2.72345]
[1733284564034,0.25488697,3672.0,3671.8,2.72345]
[1733284564196,0.25488697,3671.9,3671.8,2.72345]
[1733284564897,0.7809,3672.3,3671.8,2.72345]
[1733284565232,0.25486658,3672.2,3671.9,2.72337]